[Event "Titled Tuesday Blitz May 23 Late 2023"]
[White "Terry, Renato"]
[Black "Tomiello, Mateus Costamilan"]
[WhiteFideId "3803457"]
[BlackFideId "22701958"]
[WhiteElo "2575"]
[BlackElo "1990"]
[Result "1-0"]
[Round "02"]
[TimeControl "180+2"]
[Date "2023.05.23"]
[WhiteClock "0:00:06"]
[BlackClock "0:00:04"]

1. e4 {[%clk 0:02:56]}  e5 {[%clk 0:02:58]} 2. Nf3 {[%clk 0:02:56]}  Nc6 {[%clk 0:02:56]} 3. c3 {[%clk 0:02:56]}  Nf6 {[%clk 0:02:54]} 4. d4 {[%clk 0:02:56]}  d6 {[%clk 0:02:51]} 5. Bb5 {[%clk 0:02:55]}  Bd7 {[%clk 0:02:49]} 6. O-O {[%clk 0:02:55]}  Be7 {[%clk 0:02:44]} 7. Re1 {[%clk 0:02:54]}  O-O {[%clk 0:02:36]} 8. Ba4 {[%clk 0:02:51]}  Re8 {[%clk 0:02:31]} 9. Nbd2 {[%clk 0:02:48]}  Bf8 {[%clk 0:02:30]} 10. h3 {[%clk 0:02:42]}  h6 {[%clk 0:02:29]} 11. Bb3 {[%clk 0:02:35]}  a5 {[%clk 0:02:13]} 12. a3 {[%clk 0:02:27]}  g6 {[%clk 0:02:05]} 13. Bc2 {[%clk 0:02:09]}  Bg7 {[%clk 0:02:05]} 14. Nf1 {[%clk 0:02:08]}  b5 {[%clk 0:01:38]} 15. Ng3 {[%clk 0:02:01]}  a4 {[%clk 0:01:28]} 16. Be3 {[%clk 0:01:51]}  Na5 {[%clk 0:01:21]} 17. Nd2 {[%clk 0:01:46]}  c6 {[%clk 0:01:17]} 18. Bd3 {[%clk 0:01:46]}  Qc7 {[%clk 0:01:17]} 19. Rc1 {[%clk 0:01:44]}  c5 {[%clk 0:01:14]} 20. d5 {[%clk 0:01:35]}  c4 {[%clk 0:01:12]} 21. Bc2 {[%clk 0:01:29]}  Nb7 {[%clk 0:01:10]} 22. Nf3 {[%clk 0:01:23]}  Nc5 {[%clk 0:01:10]} 23. Nh2 {[%clk 0:01:24]}  Rf8 {[%clk 0:01:03]} 24. Qf3 {[%clk 0:01:24]}  Nh7 {[%clk 0:00:48]} 25. Rcd1 {[%clk 0:01:19]}  Ng5 {[%clk 0:00:38]} 26. Qe2 {[%clk 0:01:19]}  Rac8 {[%clk 0:00:35]} 27. h4 {[%clk 0:01:15]}  Nh7 {[%clk 0:00:35]} 28. Ng4 {[%clk 0:01:15]}  h5 {[%clk 0:00:33]} 29. Nh2 {[%clk 0:01:09]}  Nf6 {[%clk 0:00:31]} 30. Bg5 {[%clk 0:01:06]}  Ng4 {[%clk 0:00:28]} 31. Nxg4 {[%clk 0:01:03]}  Bxg4 {[%clk 0:00:28]} 32. f3 {[%clk 0:01:04]}  Bd7 {[%clk 0:00:27]} 33. Rf1 {[%clk 0:01:01]}  Kh7 {[%clk 0:00:27]} 34. Kh2 {[%clk 0:00:57]}  Bh6 {[%clk 0:00:23]} 35. Qe3 {[%clk 0:00:55]}  Bxg5 {[%clk 0:00:22]} 36. hxg5 {[%clk 0:00:56]}  Qd8 {[%clk 0:00:18]} 37. f4 {[%clk 0:00:52]}  exf4 {[%clk 0:00:18]} 38. Qxf4 {[%clk 0:00:53]}  Qe7 {[%clk 0:00:18]} 39. Qf6 {[%clk 0:00:53]}  Qxf6 {[%clk 0:00:18]} 40. Rxf6 {[%clk 0:00:54]}  Nb7 {[%clk 0:00:18]} 41. e5 {[%clk 0:00:39]}  dxe5 {[%clk 0:00:17]} 42. Re1 {[%clk 0:00:39]}  Rce8 {[%clk 0:00:16]} 43. Nxh5 {[%clk 0:00:39]}  Kg8 {[%clk 0:00:15]} 44. Ng3 {[%clk 0:00:39]}  Kg7 {[%clk 0:00:14]} 45. Rb6 {[%clk 0:00:40]}  Rh8+ {[%clk 0:00:15]} 46. Kg1 {[%clk 0:00:40]}  Nc5 {[%clk 0:00:15]} 47. Rd6 {[%clk 0:00:38]}  Re7 {[%clk 0:00:14]} 48. Be4 {[%clk 0:00:31]}  Rh4 {[%clk 0:00:14]} 49. Bf3 {[%clk 0:00:30]}  Rf4 {[%clk 0:00:14]} 50. Re3 {[%clk 0:00:17]}  e4 {[%clk 0:00:13]} 51. Be2 {[%clk 0:00:15]}  Kf8 {[%clk 0:00:13]} 52. Rb6 {[%clk 0:00:15]}  Kg7 {[%clk 0:00:13]} 53. Rb8 {[%clk 0:00:14]}  Nd3 {[%clk 0:00:13]} 54. Rb7 {[%clk 0:00:15]}  Nxb2 {[%clk 0:00:13]} 55. d6 {[%clk 0:00:15]}  Re6 {[%clk 0:00:10]} 56. Rxd7 {[%clk 0:00:15]}  Nd3 {[%clk 0:00:09]} 57. Rd8 {[%clk 0:00:15]}  Nc5 {[%clk 0:00:09]} 58. Rb8 {[%clk 0:00:09]}  Rxd6 {[%clk 0:00:10]} 59. Rxb5 {[%clk 0:00:09]}  Nd3 {[%clk 0:00:10]} 60. Rxe4 {[%clk 0:00:09]}  Rxe4 {[%clk 0:00:10]} 61. Nxe4 {[%clk 0:00:09]}  Re6 {[%clk 0:00:11]} 62. Bf3 {[%clk 0:00:07]}  Ne5 {[%clk 0:00:10]} 63. Rb8 {[%clk 0:00:06]}  Re7 {[%clk 0:00:09]} 64. Nf6 {[%clk 0:00:06]}  Nxf3+ {[%clk 0:00:04]} 65. gxf3 {[%clk 0:00:06]} 1-0


[Site "https://www.chess.com"]

[Event "Titled Tuesday Blitz May 23 Late 2023"]
[White "Arabidze, Meri"]
[Black "Kramnik, Vladimir"]
[WhiteFideId "13604040"]
[BlackFideId "4101588"]
[WhiteElo "2405"]
[BlackElo "2703"]
[Result "0-1"]
[Round "02"]
[TimeControl "180+2"]
[Date "2023.05.23"]
[WhiteClock "0:00:00"]
[BlackClock "0:00:09"]

1. d4 {[%clk 0:03:00]}  e6 {[%clk 0:02:59]} 2. Nf3 {[%clk 0:03:00]}  Nf6 {[%clk 0:02:59]} 3. c4 {[%clk 0:02:59]}  d5 {[%clk 0:02:58]} 4. Nc3 {[%clk 0:02:59]}  c6 {[%clk 0:02:57]} 5. e3 {[%clk 0:02:54]}  Nbd7 {[%clk 0:02:56]} 6. b3 {[%clk 0:02:52]}  Bb4 {[%clk 0:02:55]} 7. Bd2 {[%clk 0:02:52]}  Qe7 {[%clk 0:02:54]} 8. Bd3 {[%clk 0:02:50]}  O-O {[%clk 0:02:54]} 9. O-O {[%clk 0:02:50]}  h6 {[%clk 0:02:52]} 10. Qe2 {[%clk 0:02:47]}  dxc4 {[%clk 0:02:40]} 11. Bxc4 {[%clk 0:02:37]}  b5 {[%clk 0:02:29]} 12. Bd3 {[%clk 0:02:36]}  a6 {[%clk 0:02:25]} 13. a4 {[%clk 0:02:25]}  Bb7 {[%clk 0:02:24]} 14. Rac1 {[%clk 0:02:22]}  Rac8 {[%clk 0:02:18]} 15. e4 {[%clk 0:02:14]}  bxa4 {[%clk 0:01:43]} 16. e5 {[%clk 0:02:06]}  Nd5 {[%clk 0:01:30]} 17. Nxa4 {[%clk 0:02:02]}  Bxd2 {[%clk 0:01:27]} 18. Qxd2 {[%clk 0:01:50]}  c5 {[%clk 0:01:27]} 19. Bb1 {[%clk 0:01:32]}  cxd4 {[%clk 0:01:23]} 20. Qxd4 {[%clk 0:01:31]}  Rfd8 {[%clk 0:01:19]} 21. h3 {[%clk 0:00:50]}  Qb4 {[%clk 0:01:16]} 22. Qd3 {[%clk 0:00:37]}  Nf8 {[%clk 0:01:15]} 23. Rc4 {[%clk 0:00:25]}  Rxc4 {[%clk 0:01:08]} 24. Qxc4 {[%clk 0:00:26]}  Qxc4 {[%clk 0:01:02]} 25. bxc4 {[%clk 0:00:27]}  Nf4 {[%clk 0:01:02]} 26. Kh2 {[%clk 0:00:22]}  Bxf3 {[%clk 0:00:53]} 27. gxf3 {[%clk 0:00:23]}  N8g6 {[%clk 0:00:45]} 28. Bxg6 {[%clk 0:00:22]}  Nxg6 {[%clk 0:00:41]} 29. Re1 {[%clk 0:00:22]}  Rd4 {[%clk 0:00:40]} 30. Nb6 {[%clk 0:00:21]}  Ne7 {[%clk 0:00:39]} 31. c5 {[%clk 0:00:17]}  Nc6 {[%clk 0:00:37]} 32. Kg3 {[%clk 0:00:14]}  g5 {[%clk 0:00:36]} 33. Nc8 {[%clk 0:00:10]}  Kg7 {[%clk 0:00:34]} 34. Nd6 {[%clk 0:00:10]}  Rd5 {[%clk 0:00:34]} 35. Rb1 {[%clk 0:00:10]}  Rxc5 {[%clk 0:00:28]} 36. Rb7 {[%clk 0:00:07]}  Nxe5 {[%clk 0:00:27]} 37. Ra7 {[%clk 0:00:06]}  a5 {[%clk 0:00:23]} 38. h4 {[%clk 0:00:06]}  gxh4+ {[%clk 0:00:21]} 39. Kxh4 {[%clk 0:00:07]}  Rd5 {[%clk 0:00:17]} 40. Ne8+ {[%clk 0:00:06]}  Kg6 {[%clk 0:00:17]} 41. f4 {[%clk 0:00:07]}  Nd3 {[%clk 0:00:16]} 42. Kg3 {[%clk 0:00:06]}  Nc5 {[%clk 0:00:15]} 43. Nc7 {[%clk 0:00:06]}  Rd3+ {[%clk 0:00:15]} 44. f3 {[%clk 0:00:06]}  a4 {[%clk 0:00:14]} 45. Ra5 {[%clk 0:00:04]}  Ne4+ {[%clk 0:00:13]} 46. Kg2 {[%clk 0:00:04]}  Nc3 {[%clk 0:00:13]} 47. Ne8 {[%clk 0:00:03]}  Rd5 {[%clk 0:00:11]} 48. Ra6 {[%clk 0:00:02]}  Rf5 {[%clk 0:00:11]} 49. Nd6 {[%clk 0:00:01]}  Rxf4 {[%clk 0:00:10]} 50. Kg3 {[%clk 0:00:00]}  Nd5 {[%clk 0:00:09]} 0-1


[Site "https://www.chess.com"]

[Event "Titled Tuesday Blitz May 23 Late 2023"]
[White "Sourath Biswas"]
[Black "Babazada, Khazar"]
[WhiteFideId "35091484"]
[BlackFideId "13413554"]
[WhiteElo "2171"]
[BlackElo "2351"]
[Result "0-1"]
[Round "02"]
[TimeControl "180+2"]
[Date "2023.05.23"]
[WhiteClock "0:00:19"]
[BlackClock "0:01:25"]

1. d4 {[%clk 0:03:00]}  Nf6 {[%clk 0:03:00]} 2. Nf3 {[%clk 0:02:59]}  g6 {[%clk 0:03:00]} 3. Nc3 {[%clk 0:02:58]}  d5 {[%clk 0:03:00]} 4. Bf4 {[%clk 0:02:52]}  Bg7 {[%clk 0:03:00]} 5. e3 {[%clk 0:02:53]}  O-O {[%clk 0:03:00]} 6. Nb5 {[%clk 0:02:52]}  Na6 {[%clk 0:03:00]} 7. Be2 {[%clk 0:02:50]}  c6 {[%clk 0:03:01]} 8. Nc3 {[%clk 0:02:49]}  Nc7 {[%clk 0:03:01]} 9. O-O {[%clk 0:02:49]}  Bg4 {[%clk 0:03:01]} 10. h3 {[%clk 0:02:49]}  Bxf3 {[%clk 0:03:01]} 11. Bxf3 {[%clk 0:02:50]}  Nd7 {[%clk 0:03:02]} 12. e4 {[%clk 0:02:47]}  dxe4 {[%clk 0:02:25]} 13. Bxe4 {[%clk 0:02:48]}  Ne6 {[%clk 0:02:20]} 14. Be3 {[%clk 0:02:47]}  Nf6 {[%clk 0:02:20]} 15. Bf3 {[%clk 0:02:47]}  Qa5 {[%clk 0:02:20]} 16. Qe2 {[%clk 0:02:40]}  Rfd8 {[%clk 0:02:18]} 17. Rfd1 {[%clk 0:02:41]}  Qb4 {[%clk 0:02:12]} 18. a3 {[%clk 0:02:15]}  Qxb2 {[%clk 0:01:46]} 19. Na4 {[%clk 0:02:15]}  Qb5 {[%clk 0:01:46]} 20. Qxb5 {[%clk 0:02:15]}  cxb5 {[%clk 0:01:47]} 21. Nc3 {[%clk 0:02:16]}  Nc7 {[%clk 0:01:48]} 22. Bxb7 {[%clk 0:02:08]}  Rab8 {[%clk 0:01:47]} 23. Bf3 {[%clk 0:02:09]}  Nfd5 {[%clk 0:01:48]} 24. Nxd5 {[%clk 0:01:07]}  Nxd5 {[%clk 0:01:49]} 25. Bg5 {[%clk 0:00:38]}  Bf6 {[%clk 0:01:47]} 26. Bxf6 {[%clk 0:00:36]}  exf6 {[%clk 0:01:48]} 27. Rd3 {[%clk 0:00:21]}  Rbc8 {[%clk 0:01:44]} 28. Rb1 {[%clk 0:00:21]}  Nf4 {[%clk 0:01:44]} 29. Rd2 {[%clk 0:00:17]}  Rc3 {[%clk 0:01:41]} 30. Rxb5 {[%clk 0:00:15]}  Rxa3 {[%clk 0:01:41]} 31. Rb7 {[%clk 0:00:15]}  a5 {[%clk 0:01:41]} 32. c4 {[%clk 0:00:15]}  Rc3 {[%clk 0:01:41]} 33. c5 {[%clk 0:00:15]}  Nxh3+ {[%clk 0:01:25]} 34. gxh3 {[%clk 0:00:11]}  Rxf3 {[%clk 0:01:25]} 35. c6 {[%clk 0:00:12]}  Rc3 {[%clk 0:01:26]} 36. d5 {[%clk 0:00:11]}  Rc8 {[%clk 0:01:19]} 37. Rb6 {[%clk 0:00:06]}  a4 {[%clk 0:01:09]} 38. d6 {[%clk 0:00:07]}  a3 {[%clk 0:01:10]} 39. d7 {[%clk 0:00:07]}  Rd8 {[%clk 0:01:10]} 40. Ra6 {[%clk 0:00:08]}  Kf8 {[%clk 0:01:09]} 41. Kg2 {[%clk 0:00:07]}  Ke7 {[%clk 0:01:08]} 42. Rxa3 {[%clk 0:00:07]}  Rxc6 {[%clk 0:01:07]} 43. Re3+ {[%clk 0:00:06]}  Re6 {[%clk 0:01:08]} 44. Red3 {[%clk 0:00:05]}  f5 {[%clk 0:01:08]} 45. Rd4 {[%clk 0:00:06]}  h5 {[%clk 0:01:08]} 46. R4d3 {[%clk 0:00:06]}  Re4 {[%clk 0:01:09]} 47. Rd4 {[%clk 0:00:07]}  Rxd4 {[%clk 0:01:09]} 48. Rxd4 {[%clk 0:00:08]}  Rxd7 {[%clk 0:01:10]} 49. Rb4 {[%clk 0:00:08]}  Rd6 {[%clk 0:01:11]} 50. Kf3 {[%clk 0:00:09]}  Kf6 {[%clk 0:01:11]} 51. Kf4 {[%clk 0:00:10]}  g5+ {[%clk 0:01:12]} 52. Kg3 {[%clk 0:00:10]}  Rd3+ {[%clk 0:01:12]} 53. f3 {[%clk 0:00:11]}  h4+ {[%clk 0:01:13]} 54. Kf2 {[%clk 0:00:11]}  Rd2+ {[%clk 0:01:13]} 55. Ke3 {[%clk 0:00:12]}  Rh2 {[%clk 0:01:14]} 56. Rb6+ {[%clk 0:00:13]}  Kg7 {[%clk 0:01:15]} 57. Rb5 {[%clk 0:00:13]}  Kg6 {[%clk 0:01:15]} 58. Rb6+ {[%clk 0:00:14]}  f6 {[%clk 0:01:16]} 59. Rb8 {[%clk 0:00:14]}  Rxh3 {[%clk 0:01:17]} 60. Rg8+ {[%clk 0:00:15]}  Kf7 {[%clk 0:01:17]} 61. Rh8 {[%clk 0:00:15]}  Kg7 {[%clk 0:01:18]} 62. Rd8 {[%clk 0:00:15]}  Rh1 {[%clk 0:01:18]} 63. Rd7+ {[%clk 0:00:16]}  Kg6 {[%clk 0:01:19]} 64. Kf2 {[%clk 0:00:17]}  Ra1 {[%clk 0:01:19]} 65. Kg2 {[%clk 0:00:17]}  Ra2+ {[%clk 0:01:20]} 66. Kh3 {[%clk 0:00:17]}  Ra3 {[%clk 0:01:20]} 67. Kg2 {[%clk 0:00:17]}  g4 {[%clk 0:01:21]} 68. fxg4 {[%clk 0:00:17]}  fxg4 {[%clk 0:01:22]} 69. Rd4 {[%clk 0:00:18]}  Ra2+ {[%clk 0:01:22]} 70. Kg1 {[%clk 0:00:18]}  f5 {[%clk 0:01:23]} 71. Kh1 {[%clk 0:00:18]}  Kg5 {[%clk 0:01:23]} 72. Kg1 {[%clk 0:00:18]}  h3 {[%clk 0:01:24]} 73. Kh1 {[%clk 0:00:19]}  f4 {[%clk 0:01:24]} 74. Rd3 {[%clk 0:00:18]}  g3 {[%clk 0:01:24]} 75. Rd1 {[%clk 0:00:18]}  Kg4 {[%clk 0:01:24]} 76. Kg1 {[%clk 0:00:19]}  f3 {[%clk 0:01:24]} 77. Rd4+ {[%clk 0:00:18]}  Kf5 {[%clk 0:01:25]} 78. Rd5+ {[%clk 0:00:19]}  Ke4 {[%clk 0:01:25]} 79. Rd1 {[%clk 0:00:20]}  Rg2+ {[%clk 0:01:23]} 80. Kh1 {[%clk 0:00:20]}  Rh2+ {[%clk 0:01:23]} 81. Kg1 {[%clk 0:00:21]}  f2+ {[%clk 0:01:24]} 82. Kf1 {[%clk 0:00:19]}  Rh1+ {[%clk 0:01:25]} 0-1


[Site "https://www.chess.com"]

[Event "Titled Tuesday Blitz May 23 Late 2023"]
[White "Novik, Maxim"]
[Black "Zhigalko, Sergei"]
[WhiteFideId "4102924"]
[BlackFideId "13502956"]
[WhiteElo "2287"]
[BlackElo "2626"]
[Result "1-0"]
[Round "02"]
[TimeControl "180+2"]
[Date "2023.05.23"]
[WhiteClock "0:00:26"]
[BlackClock "0:00:00"]

1. d4 {[%clk 0:03:00]}  Nf6 {[%clk 0:03:00]} 2. c4 {[%clk 0:03:00]}  e6 {[%clk 0:03:00]} 3. Nc3 {[%clk 0:03:01]}  Bb4 {[%clk 0:03:00]} 4. e3 {[%clk 0:03:01]}  O-O {[%clk 0:03:01]} 5. Bd3 {[%clk 0:03:01]}  d5 {[%clk 0:03:00]} 6. a3 {[%clk 0:03:01]}  Bxc3+ {[%clk 0:02:55]} 7. bxc3 {[%clk 0:03:01]}  c5 {[%clk 0:02:48]} 8. cxd5 {[%clk 0:03:00]}  exd5 {[%clk 0:02:48]} 9. Ne2 {[%clk 0:03:00]}  Bg4 {[%clk 0:02:44]} 10. O-O {[%clk 0:02:58]}  Nc6 {[%clk 0:02:44]} 11. f3 {[%clk 0:02:57]}  Bh5 {[%clk 0:02:44]} 12. Ng3 {[%clk 0:02:57]}  Bg6 {[%clk 0:02:44]} 13. Ra2 {[%clk 0:02:56]}  Re8 {[%clk 0:02:43]} 14. Re2 {[%clk 0:02:55]}  Rc8 {[%clk 0:02:43]} 15. Bb2 {[%clk 0:02:42]}  Qb6 {[%clk 0:02:41]} 16. Kh1 {[%clk 0:02:33]}  a6 {[%clk 0:02:18]} 17. Bxg6 {[%clk 0:02:32]}  hxg6 {[%clk 0:02:18]} 18. e4 {[%clk 0:02:32]}  Qb5 {[%clk 0:02:07]} 19. e5 {[%clk 0:02:31]}  Nh5 {[%clk 0:01:49]} 20. Nxh5 {[%clk 0:02:26]}  gxh5 {[%clk 0:01:50]} 21. f4 {[%clk 0:02:26]}  f5 {[%clk 0:01:50]} 22. dxc5 {[%clk 0:02:12]}  Qxc5 {[%clk 0:01:39]} 23. Rd2 {[%clk 0:02:12]}  g6 {[%clk 0:01:23]} 24. Rxd5 {[%clk 0:02:09]}  Qc4 {[%clk 0:01:23]} 25. Rd6 {[%clk 0:02:00]}  Kf7 {[%clk 0:01:07]} 26. Rf3 {[%clk 0:01:43]}  Rcd8 {[%clk 0:01:02]} 27. h3 {[%clk 0:01:33]}  Rxd6 {[%clk 0:00:56]} 28. Qxd6 {[%clk 0:01:31]}  Re6 {[%clk 0:00:56]} 29. Qd7+ {[%clk 0:01:26]}  Re7 {[%clk 0:00:56]} 30. Qd2 {[%clk 0:01:25]}  Na5 {[%clk 0:00:50]} 31. Qd8 {[%clk 0:01:16]}  Qb5 {[%clk 0:00:45]} 32. Qh8 {[%clk 0:00:30]}  Qxb2 {[%clk 0:00:26]} 33. Qf6+ {[%clk 0:00:30]}  Ke8 {[%clk 0:00:24]} 34. e6 {[%clk 0:00:27]}  Qb1+ {[%clk 0:00:12]} 35. Kh2 {[%clk 0:00:27]}  Kd8 {[%clk 0:00:02]} 36. Qf8+ {[%clk 0:00:26]}  Re8 {[%clk 0:00:01]} 37. Qd6+ {[%clk 0:00:26]}  Kc8 {[%clk 0:00:01]} 38. Qd7+ {[%clk 0:00:26]}  Kb8 {[%clk 0:00:02]} 39. Qxe8+ {[%clk 0:00:27]}  Ka7 {[%clk 0:00:03]} 40. Qd7 {[%clk 0:00:27]}  Nc4 {[%clk 0:00:00]} 41. Qd4+ {[%clk 0:00:26]} 1-0


[Site "https://www.chess.com"]

[Event "Titled Tuesday Blitz May 23 Late 2023"]
[White "Veiga, Jose Francisco R P Neves"]
[Black "Xiong, Jeffery"]
[WhiteFideId "1930087"]
[BlackFideId "2047640"]
[WhiteElo "2320"]
[BlackElo "2726"]
[Result "0-1"]
[Round "02"]
[TimeControl "180+2"]
[Date "2023.05.23"]
[WhiteClock "0:00:00"]
[BlackClock "0:01:23"]

1. d4 {[%clk 0:03:00]}  f6 {[%clk 0:03:00]} 2. Nf3 {[%clk 0:03:00]}  d5 {[%clk 0:03:00]} 3. c4 {[%clk 0:03:00]}  c6 {[%clk 0:03:00]} 4. Nc3 {[%clk 0:02:59]}  dxc4 {[%clk 0:02:59]} 5. a4 {[%clk 0:02:58]}  Be6 {[%clk 0:02:56]} 6. e4 {[%clk 0:02:44]}  Bf7 {[%clk 0:02:56]} 7. d5 {[%clk 0:02:31]}  cxd5 {[%clk 0:02:50]} 8. exd5 {[%clk 0:02:31]}  e5 {[%clk 0:02:51]} 9. Bxc4 {[%clk 0:02:21]}  Bd6 {[%clk 0:02:41]} 10. O-O {[%clk 0:02:10]}  a6 {[%clk 0:02:41]} 11. Ne4 {[%clk 0:01:55]}  Ne7 {[%clk 0:02:41]} 12. b3 {[%clk 0:01:40]}  O-O {[%clk 0:02:40]} 13. Nxd6 {[%clk 0:01:39]}  Qxd6 {[%clk 0:02:41]} 14. Ba3 {[%clk 0:01:40]}  Qd7 {[%clk 0:02:41]} 15. Qd3 {[%clk 0:01:26]}  Rd8 {[%clk 0:02:33]} 16. Bxe7 {[%clk 0:01:17]}  Qxe7 {[%clk 0:02:33]} 17. Rad1 {[%clk 0:01:12]}  Nc6 {[%clk 0:02:21]} 18. Rfe1 {[%clk 0:01:06]}  Qc5 {[%clk 0:02:14]} 19. Qc3 {[%clk 0:00:52]}  Nb4 {[%clk 0:02:02]} 20. d6 {[%clk 0:00:37]}  Nd5 {[%clk 0:01:57]} 21. Qc1 {[%clk 0:00:11]}  Qxd6 {[%clk 0:01:51]} 22. Nh4 {[%clk 0:00:09]}  g6 {[%clk 0:01:37]} 23. Qd2 {[%clk 0:00:04]}  Qe7 {[%clk 0:01:33]} 24. Qe2 {[%clk 0:00:02]}  Nf4 {[%clk 0:01:33]} 25. Bxf7+ {[%clk 0:00:02]}  Qxf7 {[%clk 0:01:34]} 26. Qf3 {[%clk 0:00:02]}  Ne6 {[%clk 0:01:29]} 27. g3 {[%clk 0:00:02]}  Nd4 {[%clk 0:01:29]} 28. Qg2 {[%clk 0:00:02]}  Qxb3 {[%clk 0:01:29]} 29. f4 {[%clk 0:00:02]}  Nc6 {[%clk 0:01:22]} 30. fxe5 {[%clk 0:00:00]}  Nxe5 {[%clk 0:01:23]} 0-1


[Site "https://www.chess.com"]

[Event "Titled Tuesday Blitz May 23 Late 2023"]
[White "Eugene, Floryan"]
[Black "Grigoriants, Sergey"]
[WhiteFideId "20694784"]
[BlackFideId "4130804"]
[WhiteElo "2369"]
[BlackElo "2502"]
[Result "1-0"]
[Round "02"]
[TimeControl "180+2"]
[Date "2023.05.23"]
[WhiteClock "0:00:06"]
[BlackClock "0:00:00"]

1. d4 {[%clk 0:03:00]}  Nf6 {[%clk 0:02:45]} 2. c4 {[%clk 0:03:00]}  e6 {[%clk 0:02:45]} 3. g4 {[%clk 0:02:59]}  h6 {[%clk 0:02:30]} 4. Nc3 {[%clk 0:02:52]}  d5 {[%clk 0:02:19]} 5. g5 {[%clk 0:02:50]}  hxg5 {[%clk 0:02:15]} 6. Bxg5 {[%clk 0:02:51]}  Be7 {[%clk 0:02:15]} 7. Nf3 {[%clk 0:02:48]}  dxc4 {[%clk 0:02:03]} 8. e4 {[%clk 0:02:36]}  b5 {[%clk 0:01:57]} 9. Bxf6 {[%clk 0:02:32]}  gxf6 {[%clk 0:01:55]} 10. Nxb5 {[%clk 0:02:30]}  Bb7 {[%clk 0:01:51]} 11. Qc2 {[%clk 0:02:28]}  c5 {[%clk 0:01:45]} 12. Bxc4 {[%clk 0:02:21]}  cxd4 {[%clk 0:01:35]} 13. O-O-O {[%clk 0:02:19]}  Nc6 {[%clk 0:01:25]} 14. Nbxd4 {[%clk 0:02:14]}  Qb6 {[%clk 0:01:20]} 15. Nxc6 {[%clk 0:02:02]}  Bxc6 {[%clk 0:01:15]} 16. Nd4 {[%clk 0:02:00]}  Bd7 {[%clk 0:01:11]} 17. Kb1 {[%clk 0:01:57]}  Rc8 {[%clk 0:01:10]} 18. Qd3 {[%clk 0:01:46]}  Rc7 {[%clk 0:01:00]} 19. f4 {[%clk 0:01:40]}  Qb4 {[%clk 0:00:34]} 20. Bb3 {[%clk 0:01:30]}  a5 {[%clk 0:00:32]} 21. f5 {[%clk 0:01:18]}  e5 {[%clk 0:00:18]} 22. Nc2 {[%clk 0:01:17]}  Qb5 {[%clk 0:00:19]} 23. Qg3 {[%clk 0:00:57]}  Rf8 {[%clk 0:00:14]} 24. Rd5 {[%clk 0:00:53]}  Qb6 {[%clk 0:00:14]} 25. Rhd1 {[%clk 0:00:50]}  a4 {[%clk 0:00:14]} 26. Rxd7 {[%clk 0:00:49]}  axb3 {[%clk 0:00:14]} 27. Rxc7 {[%clk 0:00:44]}  bxa2+ {[%clk 0:00:15]} 28. Ka1 {[%clk 0:00:42]}  Qxc7 {[%clk 0:00:16]} 29. Qb3 {[%clk 0:00:35]}  Bc5 {[%clk 0:00:15]} 30. Qb5+ {[%clk 0:00:28]}  Ke7 {[%clk 0:00:15]} 31. Nb4 {[%clk 0:00:21]}  Bxb4 {[%clk 0:00:02]} 32. Qxb4+ {[%clk 0:00:22]}  Ke8 {[%clk 0:00:03]} 33. Qb5+ {[%clk 0:00:21]}  Ke7 {[%clk 0:00:03]} 34. Qb4+ {[%clk 0:00:16]}  Ke8 {[%clk 0:00:03]} 35. Qd2 {[%clk 0:00:16]}  Ke7 {[%clk 0:00:03]} 36. Rc1 {[%clk 0:00:16]}  Qd6 {[%clk 0:00:03]} 37. Qa5 {[%clk 0:00:15]}  Rb8 {[%clk 0:00:02]} 38. Qa7+ {[%clk 0:00:14]}  Kf8 {[%clk 0:00:03]} 39. Qc7 {[%clk 0:00:12]}  Qxc7 {[%clk 0:00:03]} 40. Rxc7 {[%clk 0:00:13]}  Rb4 {[%clk 0:00:03]} 41. Rc8+ {[%clk 0:00:09]}  Ke7 {[%clk 0:00:03]} 42. Kxa2 {[%clk 0:00:09]}  Rxe4 {[%clk 0:00:03]} 43. Rc2 {[%clk 0:00:09]}  Rf4 {[%clk 0:00:03]} 44. Ka3 {[%clk 0:00:08]}  Kd6 {[%clk 0:00:03]} 45. b4 {[%clk 0:00:09]}  Rxf5 {[%clk 0:00:02]} 46. b5 {[%clk 0:00:09]}  Rf1 {[%clk 0:00:02]} 47. b6 {[%clk 0:00:08]}  Rb1 {[%clk 0:00:00]} 48. Rf2 {[%clk 0:00:06]} 1-0


[Site "https://www.chess.com"]

[Event "Titled Tuesday Blitz May 23 Late 2023"]
[White "Rustemov, Alexander"]
[Black "Ibadov, Dashgyn"]
[WhiteFideId "4119002"]
[BlackFideId "24107514"]
[WhiteElo "2862"]
[BlackElo "2208"]
[Result "1-0"]
[Round "02"]
[TimeControl "180+2"]
[Date "2023.05.23"]
[WhiteClock "0:00:40"]
[BlackClock "0:00:00"]

1. d4 {[%clk 0:03:00]}  Nf6 {[%clk 0:02:57]} 2. c4 {[%clk 0:03:01]}  c5 {[%clk 0:02:58]} 3. d5 {[%clk 0:02:58]}  d6 {[%clk 0:02:59]} 4. Nc3 {[%clk 0:02:58]}  g6 {[%clk 0:02:59]} 5. e4 {[%clk 0:02:58]}  Bg7 {[%clk 0:03:00]} 6. h3 {[%clk 0:02:59]}  O-O {[%clk 0:02:58]} 7. Nf3 {[%clk 0:02:59]}  e6 {[%clk 0:02:59]} 8. Bd3 {[%clk 0:02:59]}  exd5 {[%clk 0:02:59]} 9. cxd5 {[%clk 0:02:59]}  Re8 {[%clk 0:03:00]} 10. O-O {[%clk 0:02:59]}  Nbd7 {[%clk 0:03:00]} 11. Bf4 {[%clk 0:02:55]}  c4 {[%clk 0:03:00]} 12. Bc2 {[%clk 0:02:54]}  Nc5 {[%clk 0:03:00]} 13. Re1 {[%clk 0:02:53]}  b5 {[%clk 0:03:01]} 14. Nxb5 {[%clk 0:02:44]}  Nfxe4 {[%clk 0:02:58]} 15. Nfd4 {[%clk 0:02:35]}  Qb6 {[%clk 0:02:36]} 16. Be3 {[%clk 0:01:39]}  Bd7 {[%clk 0:02:13]} 17. Na3 {[%clk 0:01:38]}  Qxb2 {[%clk 0:02:07]} 18. Nxc4 {[%clk 0:01:37]}  Qc3 {[%clk 0:02:07]} 19. Bxe4 {[%clk 0:01:30]}  Rxe4 {[%clk 0:01:25]} 20. Nxd6 {[%clk 0:01:27]}  Rxd4 {[%clk 0:01:25]} 21. Bxd4 {[%clk 0:01:25]}  Qxd4 {[%clk 0:01:17]} 22. Qxd4 {[%clk 0:01:21]}  Bxd4 {[%clk 0:01:18]} 23. Rad1 {[%clk 0:01:20]}  Bf6 {[%clk 0:01:04]} 24. Re3 {[%clk 0:01:15]}  Rb8 {[%clk 0:01:00]} 25. Ra3 {[%clk 0:01:13]}  a6 {[%clk 0:00:53]} 26. Re1 {[%clk 0:01:00]}  Rb2 {[%clk 0:00:46]} 27. Rf3 {[%clk 0:00:56]}  Kg7 {[%clk 0:00:26]} 28. g4 {[%clk 0:00:55]}  h6 {[%clk 0:00:20]} 29. a3 {[%clk 0:00:51]}  Nb3 {[%clk 0:00:08]} 30. Rd1 {[%clk 0:00:45]}  Nd4 {[%clk 0:00:05]} 31. Rxd4 {[%clk 0:00:38]}  Bxd4 {[%clk 0:00:02]} 32. Rxf7+ {[%clk 0:00:39]}  Kg8 {[%clk 0:00:03]} 33. Rxd7 {[%clk 0:00:39]}  Rxf2 {[%clk 0:00:00]} 34. Kh1 {[%clk 0:00:40]} 1-0


[Site "https://www.chess.com"]